bitfinex/quotes_ETHUSD_20250822
["timestamp","ask_amount","ask_price","bid_price","bid_amount"]
[1755828259283,11.82742471,4269.9,4269.3,0.001]
[1755828259471,7.08482471,4269.4,4269.3,0.001]
[1755828259674,13.16592471,4269.4,4269.3,0.001]
[1755828259881,13.63042471,4269.4,4269.3,0.001]
[1755828262880,13.16592471,4269.4,4269.3,0.001]
[1755828263791,12.87082471,4269.4,4269.3,0.2956]
[1755828264090,8.88682471,4269.4,4269.3,0.2956]
[1755828264405,12.87082471,4269.4,4269.3,0.2956]
[1755828264607,5.786,4269.4,4269.3,0.2956]
[1755828264791,8.88682471,4269.4,4269.3,0.2956]
[1755828265110,11.06882471,4269.4,4269.3,0.754]
[1755828265313,11.06882471,4269.4,4269.3,0.001]
[1755828265499,11.36392471,4269.4,4269.3,0.001]
[1755828266313,19.13155327,4269.4,4269.3,0.001]
[1755828267011,18.83645327,4269.4,4269.3,0.2956]
[1755828267783,3.984,4269.4,4269.3,0.2956]
[1755828267990,3.984,4269.4,4269.3,0.754]
[1755828269415,3.984,4269.4,4269.3,0.2956]
[1755828269784,1.802,4270.0,4269.3,0.2956]
[1755828269988,3.984,4269.9,4269.4,0.02342249]
[1755828270185,3.986,4269.9,4269.8,0.2946]
[1755828270395,0.002,4269.9,4269.8,0.2946]
[1755828270596,3.986,4269.9,4269.8,0.753]
[1755828270935,0.002,4269.9,4269.8,0.753]
[1755828271132,0.002,4269.9,4269.8,1.38592778]
[1755828271339,0.002,4269.9,4269.8,3.753]
[1755828271826,0.002,4269.9,4269.8,0.753]
[1755828272193,0.002,4269.9,4269.8,3.09503007]
[1755828272388,0.002,4269.9,4269.8,6.77845037]
[1755828272689,0.002,4269.9,4269.8,6.75503007]
[1755828272890,0.002,4269.9,4269.8,7.66474699]
[1755828284534,1e-08,4269.9,4269.8,7.78154699]
[1755828285840,1e-08,4269.9,4269.8,26.40873899]
[1755828286200,1e-08,4269.9,4269.8,17.23616899]
[1755828286420,1e-08,4269.9,4269.8,16.75646899]
[1755828287506,1e-08,4269.9,4269.8,16.75746899]
[1755828288448,1e-08,4269.9,4269.8,27.8008934]
[1755828288644,0.002,4270.4,4269.8,27.8008934]
[1755828288645,1e-08,4270.4,4270.3,3.00175584]
[1755828288852,1e-08,4270.4,4270.3,19.82555644]
[1755828289006,1e-08,4270.4,4270.3,20.27343889]
[1755828293857,1e-08,4270.4,4270.3,15.82113889]
[1755828294061,1e-08,4270.4,4270.3,19.80113889]
[1755828295768,1e-08,4270.4,4270.3,19.49633889]
[1755828296652,0.29080001,4270.4,4270.3,19.49633889]
[1755828296860,0.29080001,4270.4,4270.3,23.78633889]
[1755828297970,1e-08,4270.4,4270.3,23.78633889]
[1755828298166,1e-08,4270.4,4270.3,24.09113889]
[1755828298367,1e-08,4270.4,4270.3,24.56243889]
[1755828299861,1e-08,4270.4,4270.3,24.09113889]
[1755828300063,1e-08,4270.4,4270.3,23.78633889]
[1755828300382,0.29080001,4270.4,4270.3,23.78633889]
[1755828301071,1e-08,4270.4,4270.3,24.09113889]
[1755828301256,1e-08,4270.4,4270.3,24.56243889]
[1755828302264,0.002,4271.3,4271.2,3.0012624]
[1755828302469,0.002,4271.3,4271.2,21.93761305]
[1755828302780,0.002,4271.3,4271.2,22.40891305]
[1755828303685,1e-08,4271.3,4271.2,22.61955005]
[1755828304382,1e-08,4271.3,4271.2,30.37917707]
[1755828306293,1e-08,4273.4,4272.7,2.34044047]
[1755828306467,0.3108,4272.8,4272.7,9.31844047]
[1755828306857,0.3108,4272.8,4272.7,6.978]
[1755828307058,0.7838,4272.8,4272.7,7.68173]
[1755828307258,0.7838,4272.8,4272.7,10.02217047]
[1755828308361,0.3108,4272.8,4272.7,10.02217047]
[1755828308564,0.7844,4272.8,4272.7,10.02217047]
[1755828310893,0.3108,4272.8,4272.7,10.99516113]
[1755828311698,0.02,4272.8,4272.7,11.28946113]
[1755828312084,0.02,4272.8,4272.7,10.99516113]
[1755828312785,0.3215,4272.8,4272.7,10.99516113]
[1755828313882,0.7951,4272.8,4272.7,6.35716113]
[1755828314088,0.7951,4272.8,4272.7,10.02117047]
[1755828314283,0.3215,4272.8,4272.7,10.68117047]
[1755828315397,0.02,4272.8,4272.7,10.68117047]
[1755828316372,0.3024,4272.8,4272.7,10.68117047]
[1755828318408,0.02,4272.8,4272.7,10.97547047]
[1755828318594,0.02,4272.8,4272.7,12.30706781]
[1755828319805,0.02,4272.8,4272.7,12.01276781]
[1755828320006,0.3024,4272.8,4272.7,12.01276781]
[1755828320374,0.02,4272.8,4272.7,12.01276781]
[1755828320575,0.02,4272.8,4272.7,12.75736781]
[1755828320898,1e-08,4273.4,4273.3,0.66]
[1755828321201,1e-08,4273.4,4273.3,25.58946328]
[1755828321402,1e-08,4273.4,4273.3,26.15656328]
[1755828324221,0.00674636,4274.5,4274.4,2.99950963]
[1755828324382,0.00674636,4274.5,4274.4,8.21060963]
[1755828324575,0.00674636,4274.5,4274.4,13.1238289]
[1755828324911,0.00674636,4274.5,4274.4,20.37092075]
[1755828325326,3.975,4277.2,4275.7,2.99879832]
[1755828325327,1e-08,4275.8,4275.7,2.99879832]
[1755828325528,1e-08,4275.8,4275.7,8.33256577]
[1755828325732,0.77510001,4275.8,4275.7,12.34456577]
[1755828325929,0.77510001,4275.8,4275.7,8.33256577]
[1755828326099,7.04709185,4276.7,4275.7,2.33376745]
[1755828326293,1.82,4277.8,4276.0,0.66]
[1755828326593,7.04709185,4276.6,4276.2,3.0]
[1755828326822,1.82,4277.8,4276.3,0.6833847]
[1755828327128,1.82,4277.8,4276.7,2.33825145]
[1755828327421,1.82,4277.8,4276.6,3.0]
[1755828327422,7.04709185,4277.6,4276.6,4.015]
[1755828327631,7.04709185,4277.0,4276.0,3.0]
[1755828327803,7.04709185,4276.3,4275.7,4.718071]
[1755828328004,7.04709185,4276.0,4275.7,0.703071]
[1755828328233,1.8,4277.0,4275.7,0.703071]
[1755828328406,14.80785068,4276.0,4275.7,0.703071]
[1755828329621,1.8,4276.3,4275.7,0.703071]
[1755828330401,0.02,4276.8,4275.8,3.0]
[1755828330630,0.02,4276.8,4276.3,2.33846325]
[1755828330830,0.02,4276.8,4276.4,3.68338415]
[1755828331033,0.02,4276.8,4276.4,0.68338415]
[1755828331348,0.02,4276.8,4276.6,3.0]
[1755828331509,0.02,4276.8,4276.7,2.36163396]
[1755828331696,0.02,4276.8,4276.6,3.0]
[1755828331901,0.02,4276.8,4276.1,3.0]
[1755828332122,0.02,4276.8,4276.2,4.018]
[1755828332326,0.02,4276.8,4276.2,3.0]
[1755828332944,0.02,4276.8,4275.7,0.703071]
[1755828333143,0.02,4276.8,4275.8,4.021]
[1755828333344,0.02,4276.8,4275.9,3.0]
[1755828333546,0.02,4276.8,4275.7,0.88031648]
[1755828333720,14.80785068,4276.1,4275.7,0.703071]
[1755828334252,1.8,4276.0,4275.7,0.703071]
[1755828335136,4.021,4276.5,4275.7,0.703071]
[1755828335338,4.021,4276.5,4275.8,0.02338743]
[1755828335538,1.799,4276.7,4275.8,0.02338743]
[1755828335706,1.799,4276.7,4275.9,2.33866445]
[1755828335907,1.799,4276.7,4276.0,2.33859288]
[1755828336112,1.799,4276.7,4276.1,2.33857456]
[1755828336841,1.799,4276.7,4276.0,0.02338634]
[1755828336842,1.799,4276.7,4275.9,2.33867912]
[1755828337015,1.799,4276.7,4276.1,2.33853377]
[1755828337408,1.799,4276.7,4276.0,2.33862129]
[1755828337635,1.799,4276.7,4276.2,2.3385133]
[1755828337842,1.799,4276.7,4276.0,2.33858911]
[1755828338026,0.02,4276.8,4276.1,0.66]
[1755828338227,0.02,4276.8,4276.2,2.33847429]
[1755828338428,0.02,4276.8,4276.5,2.33831597]
[1755828338749,0.02,4276.8,4276.6,0.02338306]
[1755828338924,0.02,4276.8,4276.5,2.36169957]
[1755828339250,0.02,4276.8,4276.3,2.33846875]
[1755828339454,0.02,4276.8,4276.6,0.703144]
[1755828343735,4.015,4276.7,4276.6,0.703144]
[1755828346163,4.2935,4276.7,4276.6,0.703144]
[1755828346658,4.2963,4276.7,4276.6,0.703144]
[1755828347035,4.2963,4276.7,4274.9,0.001]
[1755828347234,14.80785068,4275.5,4274.9,0.001]
[1755828347562,18.82185068,4275.5,4274.9,0.4649]
[1755828347871,4.014,4275.5,4274.9,0.4649]
[1755828348360,0.099,4275.0,4274.9,0.4649]
[1755828348747,0.2795,4275.0,4274.9,0.4649]
[1755828349147,0.099,4275.0,4274.9,0.4649]
[1755828349355,16.60685068,4275.7,4274.9,0.4649]
[1755828349356,4.013,4275.2,4274.9,0.4649]
[1755828349843,0.0998,4275.0,4274.9,0.4649]
[1755828350354,4.013,4275.2,4274.9,0.4649]
[1755828350740,14.80785068,4275.3,4274.9,0.4649]
[1755828350741,4.012,4275.1,4274.9,0.4649]
[1755828351061,0.1006,4275.0,4274.9,0.4649]
[1755828352068,0.1006,4275.0,4274.9,0.001]
[1755828352761,33.1006,4275.0,4274.5,0.4649]
[1755828352935,33.1006,4275.0,4272.8,0.02]
[1755828352936,14.80785068,4274.6,4272.8,0.02]
[1755828353137,15.08635068,4273.9,4272.8,0.02]
[1755828353372,20.89835068,4273.9,4272.8,0.02]
[1755828353536,20.89835068,4273.9,4273.7,0.4639]
[1755828354545,20.61985068,4273.9,4273.7,0.4639]
[1755828355270,5.812,4273.9,4273.7,0.4639]
[1755828355458,20.71885068,4273.9,4273.7,0.4639]
[1755828356282,20.89935068,4273.9,4273.7,0.4639]
[1755828356494,20.89935068,4273.9,4272.8,0.02]
[1755828356495,20.71885068,4273.9,4273.0,0.4639]
[1755828356690,20.71885068,4273.9,4272.8,0.02]
[1755828356691,20.61685068,4273.9,4272.8,0.02]
[1755828356857,20.61685068,4273.9,4273.7,0.4639]
[1755828357674,5.81,4273.9,4273.8,0.3096]
[1755828357876,5.81,4273.9,4273.8,0.7735]
[1755828358177,5.81,4273.9,4273.8,0.02]
[1755828360360,1.799,4273.9,4273.8,0.3096]
[1755828360559,5.807,4273.9,4273.8,0.7735]
[1755828360868,6.0855,4273.9,4273.8,0.02]
[1755828361068,20.89615068,4273.9,4273.8,0.02]
[1755828361267,6.0855,4273.9,4273.8,0.02]
[1755828361473,20.89335068,4273.9,4273.8,0.02]
[1755828362346,5.809,4273.9,4273.8,0.7735]
[1755828362569,1.8,4274.5,4273.8,0.7735]
[1755828362753,4.013,4274.4,4273.8,0.7735]
[1755828363861,4.014,4274.3,4273.9,0.02339783]
[1755828364051,4.014,4274.3,4274.2,0.2896]
[1755828364455,4.014,4274.3,4274.2,0.7535]
[1755828364683,4.014,4274.3,4274.2,0.2896]
[1755828364886,4.113,4274.3,4273.8,0.02]
[1755828365383,1.8,4274.5,4274.2,0.2896]
[1755828365686,4.015,4274.4,4274.3,0.4639]
[1755828365904,1.8,4275.1,4274.4,0.7535]
[1755828366192,4.017,4275.0,4273.9,0.4639]
[1755828366666,0.02,4274.8,4273.9,0.4639]
[1755828366866,4.017,4274.7,4273.9,0.9278]
[1755828367382,4.017,4274.7,4274.0,0.48729728]
[1755828367562,0.02,4274.8,4274.6,0.2896]
[1755828367765,4.018,4274.7,4274.6,0.2896]
[1755828368363,4.018,4274.7,4274.6,0.7621]
[1755828370672,4.018,4274.7,4274.2,0.4725]
[1755828370968,4.018,4274.7,4274.6,0.703528]
[1755828372210,4.117,4274.7,4274.6,0.703528]
[1755828372499,0.02,4274.8,4274.7,5.33934545]
[1755828372703,0.02,4274.8,4274.7,21.85178645]
[1755828373159,0.02,4274.8,4274.7,22.51178645]
[1755828375901,0.02,4274.8,4274.7,5.36459032]
[1755828376204,0.02,4274.8,4274.7,3.7876]
[1755828376399,0.02,4274.8,4274.7,3.3151]
[1755828376713,0.02,4274.8,4274.7,0.7876]
[1755828377888,0.119,4274.8,4274.5,0.093793]
[1755828378080,0.119,4274.8,4273.7,0.4725]
[1755828378293,0.119,4274.8,4273.8,0.65315]
[1755828378498,0.119,4274.8,4273.9,0.4725]
[1755828378724,0.119,4274.8,4273.9,0.49589783]
[1755828378894,0.119,4274.8,4273.9,0.4725]
[1755828379295,0.119,4274.8,4274.0,3.0]
[1755828379694,0.119,4274.8,4274.0,2.33967897]
[1755828380236,0.119,4274.8,4273.9,0.4725]
[1755828380394,0.119,4274.8,4273.9,2.83567246]
[1755828380595,0.02,4274.8,4274.7,0.3151]
[1755828381013,0.02,4274.8,4274.7,3.12694545]
[1755828381223,0.02,4274.8,4274.7,6.1503389]
[1755828381436,0.02,4274.8,4274.7,6.12694545]
[1755828381934,0.02,4274.8,4274.7,6.78694545]
[1755828382136,0.002,4275.4,4275.3,20.80686782]
[1755828382426,4.02,4277.0,4275.7,5.99879832]
[1755828382595,4.02,4277.0,4275.7,21.121749]
[1755828382802,4.02,4277.0,4275.7,21.594249]
[1755828383682,4.02,4277.0,4275.7,21.688003]
[1755828383887,4.02,4277.0,4275.7,24.05014263]
[1755828384493,4.02,4277.0,4275.7,28.07214263]
[1755828385421,0.022,4275.8,4275.7,28.07214263]
[1755828386107,0.022,4275.8,4275.7,13.26429195]
[1755828386619,0.022,4275.8,4275.7,28.07214263]
[1755828387985,0.022,4275.8,4275.7,13.26129195]
[1755828388421,0.022,4275.8,4275.7,13.25929195]
[1755828389507,0.022,4275.8,4275.7,12.59929195]
[1755828389899,0.022,4275.8,4275.7,9.47189363]
[1755828390099,0.022,4275.8,4275.7,7.109754]
[1755828390304,0.022,4275.8,4275.7,3.093754]
[1755828391404,0.121,4275.8,4275.7,3.093754]
[1755828391709,0.121,4275.8,4275.3,4.014]
[1755828391900,0.121,4275.8,4275.3,4.2163]
[1755828392096,0.121,4275.8,4275.4,3.49588962]
[1755828392097,0.022,4275.8,4275.4,3.49588962]
[1755828392305,0.022,4275.8,4275.4,6.07152018]
[1755828392504,0.022,4275.8,4275.7,0.3151]
[1755828393126,0.022,4275.8,4275.5,0.4725]
[1755828393315,0.022,4275.8,4275.7,2.65389832]
[1755828393518,0.022,4275.8,4275.7,5.65389832]
[1755828393720,0.022,4275.8,4275.7,8.48853795]
[1755828396817,0.022,4275.8,4275.7,8.58229595]
[1755828398828,0.022,4275.8,4275.7,9.24229595]
[1755828399441,0.002,4276.7,4276.3,3.66]
[1755828399741,0.002,4276.7,4276.6,20.45835681]
[1755828399943,0.002,4276.7,4276.6,26.82849644]
[1755828400124,0.002,4276.7,4276.6,27.28969644]
[1755828400643,0.002,4276.7,4276.6,27.29169644]
[1755828402315,0.002,4276.7,4276.6,8.01264576]
[1755828402513,0.002,4276.7,4276.6,12.02064576]
[1755828403410,0.002,4276.7,4276.6,8.01264576]
[1755828403610,0.101,4276.7,4276.6,5.33830613]
[1755828403816,0.101,4276.7,4276.6,7.006]
[1755828404018,0.002,4276.7,4276.6,6.34430613]
[1755828404217,0.002,4276.7,4276.6,9.34430613]
[1755828404441,0.002,4276.7,4276.6,6.58960613]
[1755828404616,0.002,4276.7,4276.6,4.2513]
[1755828404819,0.1023,4276.7,4276.6,4.005]
[1755828405254,0.1023,4276.7,4276.4,0.224]
[1755828405443,0.1023,4276.7,4276.4,4.005]
[1755828405444,0.3251,4276.7,4276.4,4.005]
[1755828405624,0.3251,4276.7,4276.3,4.005]
[1755828405822,0.1023,4276.7,4276.1,0.224]
[1755828406075,0.2228,4276.6,4275.6,4.006]
[1755828406354,0.2228,4276.6,4275.7,3.0]
[1755828407158,0.1015,4275.8,4275.3,0.001]
[1755828407451,0.1015,4275.8,4275.3,0.2238]
[1755828407621,0.1015,4275.8,4275.3,0.001]
[1755828408453,0.1015,4275.8,4275.4,2.33895272]
[1755828408652,1.799,4276.4,4275.4,2.33895272]
[1755828408653,1.799,4276.4,4275.7,2.3387537]
[1755828408957,1.799,4276.4,4275.8,2.33872898]
[1755828409150,1.799,4276.4,4275.7,3.0]
[1755828409339,0.099,4275.9,4275.7,3.0]
[1755828410035,0.099,4275.9,4275.6,5.33882367]
[1755828410263,0.099,4275.9,4275.7,2.33879464]
[1755828410570,0.002,4276.3,4275.7,2.33879464]
[1755828410765,0.002,4276.3,4276.2,15.12005068]
[1755828410949,0.002,4276.3,4276.2,24.46257553]
[1755828411262,0.002,4276.3,4276.2,24.92377553]
[1755828412471,0.002,4276.3,4276.2,25.14907553]
[1755828415156,0.002,4276.3,4276.2,9.56782485]
[1755828415347,0.002,4276.3,4276.2,9.88002485]
[1755828415573,0.002,4276.3,4276.2,12.70336448]
[1755828416769,0.002,4276.3,4276.2,13.36336448]
[1755828417976,1.799,4277.7,4276.7,2.99825145]
[1755828418271,1.799,4277.7,4276.7,25.12030213]
[1755828418662,1.799,4277.7,4276.7,26.28447613]
[1755828418845,1.799,4277.7,4276.7,28.64661576]
[1755828420287,0.02,4277.8,4276.7,28.64661576]
[1755828420460,0.002,4277.7,4276.7,28.64661576]
[1755828421388,0.002,4277.7,4277.2,2.33797122]
[1755828421554,0.002,4277.7,4277.6,18.11781017]
[1755828421756,0.002,4277.7,4277.6,25.11681017]
[1755828421975,0.002,4277.7,4277.6,25.57801017]
[1755828422149,0.002,4277.7,4277.6,13.1322991]
[1755828422351,0.002,4277.7,4277.6,23.94114978]
[1755828422578,0.002,4277.7,4277.6,27.94014978]
[1755828423485,0.002,4277.7,4277.6,23.16774978]
[1755828423789,0.002,4277.7,4277.6,3.0]
[1755828423790,0.101,4277.7,4277.6,3.0]
[1755828423975,0.101,4277.7,4277.6,9.33975949]
[1755828424685,0.101,4277.7,4277.3,1.799]
[1755828424982,0.101,4277.7,4277.4,4.001]
[1755828425187,0.101,4277.7,4277.5,3.0]
[1755828426188,0.002,4277.7,4277.6,7.13453708]
[1755828426351,0.002,4277.7,4277.6,6.64995949]
[1755828426556,0.002,4277.7,4277.5,3.93388645]
[1755828426557,0.101,4277.7,4277.5,3.93388645]
[1755828426786,0.101,4277.7,4277.6,0.2453]
[1755828428058,0.101,4277.7,4277.6,2.58305949]
[1755828428263,0.002,4277.7,4277.6,2.58305949]
[1755828428485,0.002,4277.7,4277.6,5.27997671]
[1755828428794,0.002,4277.7,4277.6,12.68639912]
[1755828429210,0.002,4277.7,4277.6,11.94419912]
[1755828429974,0.3176,4277.7,4277.6,3.0]
[1755828430799,0.002,4277.7,4277.6,3.0]
[1755828431035,0.002,4277.7,4277.6,9.33675949]
[1755828431320,0.002,4277.7,4277.6,9.43048249]
[1755828431493,0.002,4277.7,4277.6,9.74188249]
[1755828431685,0.002,4277.7,4277.6,10.16968249]
[1755828431886,0.002,4277.7,4277.6,12.53182212]
[1755828433619,0.002,4277.7,4277.6,12.7082598]
[1755828435226,0.002,4277.7,4277.6,7.9700598]
[1755828435401,0.101,4277.7,4277.6,7.26516068]
[1755828435604,0.101,4277.7,4277.6,7.17043768]
[1755828435921,0.101,4277.7,4277.6,3.17643768]
[1755828437927,0.002,4277.7,4277.6,3.17643768]
[1755828438499,0.101,4277.7,4277.6,3.17643768]
[1755828438915,0.002,4277.7,4277.6,3.17643768]
[1755828439114,0.002,4277.7,4277.6,5.82559717]
[1755828439407,0.002,4277.7,4277.6,3.91563768]
[1755828439610,0.002,4277.7,4277.6,6.90653926]
[1755828440413,0.002,4277.7,4277.6,6.47873926]
[1755828441829,0.002,4277.7,4277.6,6.72403926]
[1755828442930,0.002,4277.7,4277.6,7.15183926]
[1755828443138,0.02,4279.8,4278.6,2.33716479]
[1755828443301,0.02,4279.8,4279.7,2.33661237]
[1755828443633,0.02,4279.8,4279.7,9.35661237]
[1755828443803,0.02,4279.8,4279.7,9.45029237]
[1755828444229,0.02,4279.8,4279.7,5.43029237]
[1755828444435,0.02,4279.8,4279.7,9.45029237]
[1755828445526,0.02,4279.8,4279.7,10.18949237]
[1755828445728,0.02,4279.8,4279.7,7.11368]
[1755828445924,0.02,4279.8,4279.7,5.43029237]
[1755828446124,0.02,4279.8,4279.7,10.18649237]
[1755828446526,0.02,4279.8,4279.7,3.09368]
[1755828446714,0.02,4279.8,4279.7,6.19285849]
[1755828446916,0.02,4279.8,4279.7,10.18549237]
[1755828447118,0.02,4279.8,4279.7,13.10599162]
[1755828447318,0.02,4279.8,4279.7,12.44599162]
[1755828447535,0.02,4279.8,4279.7,3.09368]
[1755828447729,0.02,4279.8,4279.7,7.12368]
[1755828450338,0.02,4279.8,4279.7,3.09368]
[1755828450540,0.119,4279.8,4279.7,3.09368]
[1755828450744,0.343,4279.8,4279.7,3.09368]
[1755828451246,0.119,4279.8,4279.7,3.09368]
[1755828453032,0.02,4279.8,4279.7,3.09368]
[1755828453443,0.022,4279.8,4279.7,3.09368]
[1755828453645,0.022,4279.8,4279.7,0.09368]
[1755828454236,0.217,4279.8,4279.7,0.09368]
[1755828454567,0.217,4279.8,4278.2,2.33742468]
[1755828454733,0.022,4279.8,4278.7,14.80785068]
[1755828454934,0.022,4279.8,4278.7,15.93847868]
[1755828455152,0.022,4279.8,4278.9,2.33703272]
[1755828455357,0.022,4279.8,4278.8,0.4278]
[1755828455358,0.022,4279.8,4279.0,2.33699268]
[1755828455555,0.022,4279.8,4278.8,2.76489785]
[1755828455767,0.022,4279.8,4278.9,2.23045765]
[1755828455974,0.022,4279.8,4279.1,14.80785068]
[1755828456171,0.022,4279.8,4279.2,3.0]
[1755828456646,0.022,4279.8,4279.2,2.33686685]
[1755828456848,0.022,4279.8,4279.3,3.0]
[1755828457164,0.022,4279.8,4279.0,7.03]
[1755828457546,0.024,4279.8,4279.0,9.36698125]
[1755828457853,0.024,4279.8,4279.1,0.702692]
[1755828458260,0.024,4279.8,4279.1,3.03962214]
[1755828458471,0.024,4279.8,4279.2,2.79197803]
[1755828458649,0.024,4279.8,4279.3,3.0]
[1755828458849,0.024,4279.8,4279.2,3.4551]
[1755828459178,0.024,4279.8,4279.2,3.0]
[1755828459384,0.024,4279.8,4279.2,3.702692]
[1755828459579,0.024,4279.8,4279.2,0.702692]
[1755828460189,0.2493,4279.8,4279.2,0.702692]
[1755828460385,0.2493,4279.8,4279.3,0.21576177]
[1755828460585,0.024,4279.8,4279.4,0.21576177]
[1755828460889,0.2253,4279.7,4279.5,0.21576177]
[1755828461093,0.024,4279.8,4279.6,0.21576177]
[1755828461094,0.022,4279.8,4279.6,0.21576177]
[1755828461292,0.127,4279.3,4279.2,0.702692]
[1755828461497,0.022,4279.8,4279.2,0.91859012]
[1755828461661,0.022,4279.8,4279.3,0.21589812]
[1755828461860,0.022,4279.8,4279.4,0.21589812]
[1755828462060,0.022,4279.8,4279.5,0.21589812]
[1755828462358,0.022,4279.8,4279.6,0.21589812]
[1755828462566,0.022,4279.8,4279.7,0.21589812]
[1755828463501,0.0233,4279.8,4279.2,0.702692]
[1755828463670,0.1491,4279.8,4279.2,0.702692]
[1755828464183,0.0233,4279.8,4279.2,0.702692]
[1755828464368,0.0233,4279.8,4278.8,3.0]
[1755828464688,0.0233,4279.8,4278.9,0.702793]
[1755828464891,0.022,4279.8,4278.9,0.702793]
[1755828465060,0.022,4279.8,4278.9,1.157893]
[1755828465261,0.022,4279.8,4278.9,3.49492559]
[1755828465566,0.022,4279.8,4279.0,3.0]
[1755828465778,0.022,4279.8,4279.0,5.79208942]
[1755828466172,0.022,4279.8,4279.0,3.4551]
[1755828466371,0.022,4279.8,4279.1,0.70277]
[1755828466785,0.022,4279.8,4279.0,3.4551]
[1755828467186,0.022,4279.8,4279.2,0.70277]
[1755828468100,0.099,4279.3,4279.2,0.70277]
[1755828468788,0.099,4279.3,4278.1,0.4551]
[1755828468983,1.897,4279.3,4278.1,0.4551]
[1755828469183,5.919,4279.3,4279.1,0.224]
[1755828470808,6.143,4279.3,4279.1,0.224]
[1755828471009,0.224,4279.2,4278.1,0.4551]
[1755828471164,5.919,4279.3,4278.2,0.4551]
[1755828471165,6.0453,4279.3,4278.2,0.4551]
[1755828471565,0.022,4279.8,4278.5,14.80785068]
[1755828471798,0.022,4279.8,4278.7,2.33715318]
[1755828472366,0.022,4279.8,4278.8,3.4551]
[1755828472600,0.022,4279.8,4279.7,0.2913]
[1755828472972,0.022,4279.8,4279.7,0.7464]
[1755828474177,0.022,4279.8,4279.2,0.4551]
[1755828475079,0.022,4279.8,4279.7,0.2913]
[1755828476377,0.022,4279.8,4279.5,0.4551]
[1755828476581,0.022,4279.8,4278.9,3.0]
[1755828476766,0.022,4279.8,4279.7,0.2913]
[1755828477169,0.022,4279.8,4279.7,0.7464]
[1755828479475,0.022,4279.8,4279.7,1.449128]
[1755828480083,0.022,4279.8,4279.7,3.78574037]
[1755828480287,0.022,4279.8,4279.7,21.59359105]
[1755828480493,0.022,4279.8,4279.7,23.95573068]
[1755828484601,0.022,4279.8,4279.7,9.14788]
[1755828485390,0.022,4279.8,4279.7,13.16788]
[1755828486091,0.022,4279.8,4279.7,13.16488]
[1755828486494,0.022,4279.8,4279.7,6.81126763]
[1755828486718,0.022,4279.8,4279.7,4.449128]
[1755828487424,0.022,4279.8,4279.7,6.80910649]
[1755828487631,0.022,4279.8,4279.7,6.78574037]
[1755828488296,0.006499,4279.8,4279.7,6.78574037]
[1755828491936,0.006499,4279.8,4279.7,7.44574037]
[1755828492245,0.006499,4279.8,4279.7,9.80788]
[1755828493398,0.006499,4279.8,4279.7,13.82588]
[1755828494230,1e-08,4279.8,4279.7,13.82588]
[1755828494591,1e-08,4279.8,4279.7,28.63273068]
[1755828496430,1e-08,4279.8,4279.7,24.61573068]
[1755828496595,1e-08,4279.8,4279.7,28.63173068]
[1755828496800,1e-08,4279.8,4279.7,24.61573068]
[1755828497002,1e-08,4279.8,4279.7,28.63173068]
[1755828497954,1e-08,4279.8,4279.7,24.16063068]
[1755828498161,1e-08,4279.8,4279.7,8.69278]
[1755828498455,0.09900001,4279.8,4279.7,4.717728]
[1755828498797,0.09900001,4279.8,4279.7,0.702728]
[1755828499539,1e-08,4279.8,4279.7,0.702728]
[1755828499739,1e-08,4279.8,4279.7,25.64465717]
[1755828499926,1e-08,4279.8,4279.7,27.98343068]
[1755828500440,1e-08,4279.8,4279.7,28.64343068]
[1755828501230,1e-08,4279.8,4279.7,28.64543068]
[1755828502150,1e-08,4279.8,4279.7,13.83658]
[1755828504532,1e-08,4279.8,4279.7,9.82058]
[1755828504723,1e-08,4279.8,4279.7,13.83458]
[1755828505056,1e-08,4279.8,4279.7,12.41448]
[1755828505256,0.09900001,4279.8,4279.7,10.05234037]
[1755828505469,0.09900001,4279.8,4279.7,3.702728]
[1755828505673,0.09900001,4279.8,4279.7,7.715728]
[1755828506259,0.09900001,4279.8,4279.7,10.36434037]
[1755828506260,1e-08,4279.8,4279.7,10.36434037]
[1755828506431,1e-08,4279.8,4279.7,12.72648]
[1755828506632,1e-08,4279.8,4279.7,12.41448]
[1755828506933,1e-08,4279.8,4279.7,12.41348]
[1755828507241,1e-08,4279.8,4279.7,10.05134037]
[1755828507242,0.09900001,4279.8,4279.7,10.05134037]
[1755828507459,0.09900001,4279.8,4279.7,3.702728]
[1755828507659,0.09900001,4279.8,4279.7,7.714728]
[1755828507968,0.09900001,4279.8,4279.7,3.702728]
[1755828508260,0.32300001,4279.8,4279.7,0.702728]
[1755828508833,0.09900001,4279.8,4279.7,0.702728]
[1755828509028,1e-08,4279.8,4279.7,0.702728]
[1755828509432,1e-08,4279.8,4279.7,6.03934037]
[1755828509631,1e-08,4279.8,4279.7,7.80357441]
[1755828510257,1e-08,4279.8,4279.7,8.46357441]
[1755828511361,1e-08,4279.8,4279.7,23.27142509]
[1755828512233,1e-08,4279.8,4279.7,7.80357441]
[1755828513065,1e-08,4279.8,4279.7,11.81257441]
[1755828513705,1e-08,4279.8,4279.7,7.35647441]
[1755828513877,0.00230001,4279.8,4279.7,10.04834037]
[1755828514211,0.00230001,4279.8,4279.7,10.04734037]